[Event "Titled Tuesday Blitz June 15 2021"]
[White "Can, Emre"]
[Black "ADEBAYO, Adegboyega Joel"]
[WhiteFideId "6302181"]
[BlackFideId "8500282"]
[WhiteElo "2503"]
[BlackElo "2283"]
[Result "0-1"]
[Round "04"]
[TimeControl "180+1"]
[Date "2021.06.15"]
[WhiteClock "0:00:03"]
[BlackClock "0:00:15"]

1. Nf3 {[%clk 0:03:00]}  d5 {[%clk 0:02:56]} 2. c4 {[%clk 0:03:00]}  c6 {[%clk 0:02:56]} 3. d4 {[%clk 0:03:00]}  e6 {[%clk 0:02:55]} 4. Nbd2 {[%clk 0:02:59]}  Nf6 {[%clk 0:02:52]} 5. g3 {[%clk 0:02:59]}  Nbd7 {[%clk 0:02:49]} 6. Bg2 {[%clk 0:02:59]}  b6 {[%clk 0:02:50]} 7. O-O {[%clk 0:02:58]}  Bb7 {[%clk 0:02:49]} 8. Qc2 {[%clk 0:02:51]}  c5 {[%clk 0:02:49]} 9. dxc5 {[%clk 0:02:49]}  Bxc5 {[%clk 0:02:46]} 10. cxd5 {[%clk 0:02:41]}  Nxd5 {[%clk 0:02:44]} 11. a3 {[%clk 0:02:33]}  Rc8 {[%clk 0:02:41]} 12. Qa4 {[%clk 0:02:27]}  a6 {[%clk 0:02:38]} 13. e4 {[%clk 0:02:14]}  b5 {[%clk 0:02:28]} 14. Qb3 {[%clk 0:02:04]}  N5f6 {[%clk 0:02:26]} 15. e5 {[%clk 0:02:02]}  Ng4 {[%clk 0:02:19]} 16. h3 {[%clk 0:01:41]}  Bxf3 {[%clk 0:02:08]} 17. Nxf3 {[%clk 0:01:36]}  Ngxe5 {[%clk 0:02:07]} 18. Nxe5 {[%clk 0:01:33]}  Nxe5 {[%clk 0:02:07]} 19. Bf4 {[%clk 0:01:16]}  Ng6 {[%clk 0:01:51]} 20. Rad1 {[%clk 0:01:09]}  Qb6 {[%clk 0:01:46]} 21. Bc1 {[%clk 0:01:04]}  O-O {[%clk 0:01:43]} 22. h4 {[%clk 0:01:04]}  Rfd8 {[%clk 0:01:34]} 23. h5 {[%clk 0:01:01]}  Ne5 {[%clk 0:01:26]} 24. h6 {[%clk 0:00:51]}  Ng4 {[%clk 0:01:03]} 25. Rxd8+ {[%clk 0:00:35]}  Rxd8 {[%clk 0:01:01]} 26. Qf3 {[%clk 0:00:31]}  Nxh6 {[%clk 0:00:19]} 27. Bg5 {[%clk 0:00:30]}  Re8 {[%clk 0:00:14]} 28. Bxh6 {[%clk 0:00:29]}  gxh6 {[%clk 0:00:15]} 29. Rd1 {[%clk 0:00:28]}  Rd8 {[%clk 0:00:13]} 30. b4 {[%clk 0:00:21]}  Rxd1+ {[%clk 0:00:11]} 31. Qxd1 {[%clk 0:00:21]}  Bxf2+ {[%clk 0:00:12]} 32. Kh2 {[%clk 0:00:21]}  Bd4 {[%clk 0:00:13]} 33. Qh5 {[%clk 0:00:19]}  Bg7 {[%clk 0:00:11]} 34. Qf3 {[%clk 0:00:17]}  Qd4 {[%clk 0:00:12]} 35. Qa8+ {[%clk 0:00:17]}  Bf8 {[%clk 0:00:12]} 36. Qxa6 {[%clk 0:00:17]}  Bd6 {[%clk 0:00:13]} 37. Qxb5 {[%clk 0:00:15]}  Qh4+ {[%clk 0:00:12]} 38. Kg1 {[%clk 0:00:14]}  Qxg3 {[%clk 0:00:12]} 39. Qc6 {[%clk 0:00:10]}  Qe1+ {[%clk 0:00:11]} 40. Bf1 {[%clk 0:00:10]}  Qe3+ {[%clk 0:00:10]} 41. Kh1 {[%clk 0:00:09]}  Qg3 {[%clk 0:00:10]} 42. Qg2 {[%clk 0:00:09]}  Qxg2+ {[%clk 0:00:10]} 43. Kxg2 {[%clk 0:00:09]}  f5 {[%clk 0:00:10]} 44. Kf3 {[%clk 0:00:09]}  Kf7 {[%clk 0:00:11]} 45. Bc4 {[%clk 0:00:09]}  Kf6 {[%clk 0:00:12]} 46. Bb3 {[%clk 0:00:09]}  e5 {[%clk 0:00:12]} 47. Bg8 {[%clk 0:00:08]}  e4+ {[%clk 0:00:13]} 48. Ke3 {[%clk 0:00:08]}  Ke5 {[%clk 0:00:13]} 49. Bxh7 {[%clk 0:00:06]}  f4+ {[%clk 0:00:14]} 50. Ke2 {[%clk 0:00:06]}  f3+ {[%clk 0:00:14]} 51. Kd2 {[%clk 0:00:06]}  Kf4 {[%clk 0:00:14]} 52. Bg8 {[%clk 0:00:04]}  e3+ {[%clk 0:00:14]} 53. Ke1 {[%clk 0:00:03]}  e2 {[%clk 0:00:14]} 54. Bc4 {[%clk 0:00:03]}  Ke3 {[%clk 0:00:15]} 0-1


[Site "https://www.chess.com"]

[Event "Titled Tuesday Blitz June 15 2021"]
[White "Cruz, Jonathan"]
[Black "Grunberg, Mihai-Lucian"]
[WhiteFideId "3802124"]
[BlackFideId "1204149"]
[WhiteElo "2381"]
[BlackElo "2364"]
[Result "0-1"]
[Round "04"]
[TimeControl "180+1"]
[Date "2021.06.15"]
[WhiteClock "0:00:09"]
[BlackClock "0:01:21"]

1. Nf3 {[%clk 0:02:58]}  Nf6 {[%clk 0:03:00]} 2. d4 {[%clk 0:02:58]}  g6 {[%clk 0:03:00]} 3. g3 {[%clk 0:02:55]}  Bg7 {[%clk 0:03:01]} 4. Bg2 {[%clk 0:02:56]}  O-O {[%clk 0:03:01]} 5. O-O {[%clk 0:02:57]}  c6 {[%clk 0:03:02]} 6. b3 {[%clk 0:02:56]}  d6 {[%clk 0:03:03]} 7. Bb2 {[%clk 0:02:56]}  a5 {[%clk 0:03:03]} 8. c4 {[%clk 0:02:55]}  Bf5 {[%clk 0:03:00]} 9. Nbd2 {[%clk 0:02:55]}  Qc8 {[%clk 0:02:58]} 10. Re1 {[%clk 0:02:54]}  Bh3 {[%clk 0:02:58]} 11. Bh1 {[%clk 0:02:54]}  Na6 {[%clk 0:02:58]} 12. a3 {[%clk 0:02:53]}  Re8 {[%clk 0:02:54]} 13. Qc2 {[%clk 0:02:53]}  Qc7 {[%clk 0:02:53]} 14. Rac1 {[%clk 0:02:48]}  e5 {[%clk 0:02:51]} 15. c5 {[%clk 0:02:04]}  exd4 {[%clk 0:02:48]} 16. cxd6 {[%clk 0:02:03]}  Qxd6 {[%clk 0:02:48]} 17. Nxd4 {[%clk 0:02:03]}  Rad8 {[%clk 0:02:35]} 18. Nc4 {[%clk 0:01:46]}  Qc7 {[%clk 0:02:28]} 19. Bc3 {[%clk 0:01:38]}  Nd5 {[%clk 0:02:18]} 20. Bxa5 {[%clk 0:01:24]}  b6 {[%clk 0:02:18]} 21. Nxb6 {[%clk 0:00:39]}  Bxd4 {[%clk 0:01:57]} 22. Nxd5 {[%clk 0:00:29]}  Qxa5 {[%clk 0:01:57]} 23. Nf4 {[%clk 0:00:26]}  Bf5 {[%clk 0:01:50]} 24. e4 {[%clk 0:00:26]}  Bd7 {[%clk 0:01:45]} 25. Rcd1 {[%clk 0:00:22]}  c5 {[%clk 0:01:41]} 26. b4 {[%clk 0:00:14]}  Qxa3 {[%clk 0:01:39]} 27. bxc5 {[%clk 0:00:15]}  Ba4 {[%clk 0:01:36]} 28. Qc1 {[%clk 0:00:09]}  Qxc1 {[%clk 0:01:29]} 29. Rxc1 {[%clk 0:00:10]}  Nxc5 {[%clk 0:01:25]} 30. Nd5 {[%clk 0:00:09]}  Nd3 {[%clk 0:01:21]} 0-1


[Site "https://www.chess.com"]

[Event "Titled Tuesday Blitz June 15 2021"]
[White "Denishev, Marat"]
[Black "Weetik, Vjacheslav"]
[WhiteFideId "24131563"]
[BlackFideId "4153472"]
[WhiteElo "2132"]
[BlackElo "2469"]
[Result "0-1"]
[Round "04"]
[TimeControl "180+1"]
[Date "2021.06.15"]
[WhiteClock "0:00:01"]
[BlackClock "0:00:07"]

1. e4 {[%clk 0:03:00]}  d5 {[%clk 0:02:59]} 2. exd5 {[%clk 0:02:59]}  Qxd5 {[%clk 0:02:59]} 3. Nc3 {[%clk 0:02:58]}  Qd6 {[%clk 0:02:59]} 4. g3 {[%clk 0:02:57]}  Nf6 {[%clk 0:02:55]} 5. Bg2 {[%clk 0:02:57]}  Bg4 {[%clk 0:02:50]} 6. Nge2 {[%clk 0:02:56]}  Nc6 {[%clk 0:02:41]} 7. O-O {[%clk 0:02:54]}  O-O-O {[%clk 0:02:41]} 8. d3 {[%clk 0:02:54]}  a6 {[%clk 0:02:34]} 9. Qe1 {[%clk 0:02:49]}  e5 {[%clk 0:02:18]} 10. Bg5 {[%clk 0:02:44]}  Be7 {[%clk 0:02:08]} 11. a3 {[%clk 0:02:19]}  Rhe8 {[%clk 0:01:58]} 12. b4 {[%clk 0:02:17]}  Nd4 {[%clk 0:01:28]} 13. Bxf6 {[%clk 0:01:53]}  Bxf6 {[%clk 0:01:13]} 14. Nxd4 {[%clk 0:01:46]}  exd4 {[%clk 0:01:02]} 15. Ne4 {[%clk 0:01:46]}  Qb6 {[%clk 0:00:55]} 16. Qd2 {[%clk 0:01:36]}  Be7 {[%clk 0:00:49]} 17. Rab1 {[%clk 0:01:27]}  h6 {[%clk 0:00:44]} 18. Nc5 {[%clk 0:01:25]}  c6 {[%clk 0:00:38]} 19. Qf4 {[%clk 0:01:21]}  f5 {[%clk 0:00:30]} 20. Qc1 {[%clk 0:00:49]}  Bxc5 {[%clk 0:00:26]} 21. bxc5 {[%clk 0:00:49]}  Qxc5 {[%clk 0:00:27]} 22. Qb2 {[%clk 0:00:36]}  Re7 {[%clk 0:00:26]} 23. Qa2 {[%clk 0:00:32]}  f4 {[%clk 0:00:18]} 24. gxf4 {[%clk 0:00:24]}  Rf8 {[%clk 0:00:16]} 25. Rbe1 {[%clk 0:00:16]}  Rxf4 {[%clk 0:00:16]} 26. Qg8+ {[%clk 0:00:14]}  Kc7 {[%clk 0:00:14]} 27. Be4 {[%clk 0:00:06]}  Bh3 {[%clk 0:00:08]} 28. f3 {[%clk 0:00:03]}  Qg5+ {[%clk 0:00:07]} 29. Kf2 {[%clk 0:00:01]}  Qg2# {[%clk 0:00:07]} 0-1


[Site "https://www.chess.com"]

[Event "Titled Tuesday Blitz June 15 2021"]
[White "Fier, Alexandr"]
[Black "Senthil Maran K"]
[WhiteFideId "2107139"]
[BlackFideId "25035681"]
[WhiteElo "2751"]
[BlackElo "2548"]
[Result "1-0"]
[Round "04"]
[TimeControl "180+1"]
[Date "2021.06.15"]
[WhiteClock "0:01:25"]
[BlackClock "0:00:01"]

1. e4 {[%clk 0:03:00]}  c6 {[%clk 0:02:59]} 2. d4 {[%clk 0:03:00]}  d5 {[%clk 0:03:00]} 3. e5 {[%clk 0:02:56]}  Bf5 {[%clk 0:03:00]} 4. Nc3 {[%clk 0:02:54]}  a6 {[%clk 0:02:52]} 5. g4 {[%clk 0:02:53]}  Bd7 {[%clk 0:02:52]} 6. h4 {[%clk 0:02:53]}  e6 {[%clk 0:02:51]} 7. h5 {[%clk 0:02:53]}  c5 {[%clk 0:02:50]} 8. Nf3 {[%clk 0:02:53]}  Nc6 {[%clk 0:02:35]} 9. dxc5 {[%clk 0:02:43]}  Bxc5 {[%clk 0:02:32]} 10. Bg2 {[%clk 0:02:40]}  Qc7 {[%clk 0:02:01]} 11. Bf4 {[%clk 0:02:38]}  d4 {[%clk 0:01:54]} 12. Ne4 {[%clk 0:02:37]}  Bb4+ {[%clk 0:01:51]} 13. c3 {[%clk 0:02:35]}  dxc3 {[%clk 0:01:51]} 14. bxc3 {[%clk 0:02:36]}  Be7 {[%clk 0:01:46]} 15. O-O {[%clk 0:02:34]}  Nh6 {[%clk 0:01:43]} 16. Nd6+ {[%clk 0:02:25]}  Bxd6 {[%clk 0:01:21]} 17. exd6 {[%clk 0:02:26]}  Qa5 {[%clk 0:01:22]} 18. Rb1 {[%clk 0:02:17]}  Rb8 {[%clk 0:00:42]} 19. Nd4 {[%clk 0:02:08]}  O-O {[%clk 0:00:17]} 20. Nxc6 {[%clk 0:01:55]}  bxc6 {[%clk 0:00:11]} 21. Bxh6 {[%clk 0:01:45]}  gxh6 {[%clk 0:00:11]} 22. Qd4 {[%clk 0:01:46]}  Qxa2 {[%clk 0:00:06]} 23. Be4 {[%clk 0:01:42]}  Rb5 {[%clk 0:00:04]} 24. Qf6 {[%clk 0:01:41]}  Qa4 {[%clk 0:00:02]} 25. f3 {[%clk 0:01:27]}  Rfb8 {[%clk 0:00:02]} 26. Qxh6 {[%clk 0:01:26]}  Qc4 {[%clk 0:00:02]} 27. Bxh7+ {[%clk 0:01:25]}  Kh8 {[%clk 0:00:01]} 28. Bg6+ {[%clk 0:01:25]} 1-0


[Site "https://www.chess.com"]

[Event "Titled Tuesday Blitz June 15 2021"]
[White "Florescu, Codrut-Constantin"]
[Black "Molina, Roberto Junio Brito"]
[WhiteFideId "1202200"]
[BlackFideId "2109450"]
[WhiteElo "2243"]
[BlackElo "2402"]
[Result "1-0"]
[Round "04"]
[TimeControl "180+1"]
[Date "2021.06.15"]
[WhiteClock "0:00:47"]
[BlackClock "0:00:18"]

1. d4 {[%clk 0:03:00]}  d5 {[%clk 0:02:59]} 2. Bf4 {[%clk 0:02:59]}  Nf6 {[%clk 0:02:57]} 3. e3 {[%clk 0:02:59]}  c5 {[%clk 0:02:57]} 4. Nd2 {[%clk 0:02:59]}  cxd4 {[%clk 0:02:56]} 5. exd4 {[%clk 0:02:58]}  Nc6 {[%clk 0:02:56]} 6. c3 {[%clk 0:02:58]}  g6 {[%clk 0:02:52]} 7. h3 {[%clk 0:02:56]}  Bg7 {[%clk 0:02:52]} 8. Ngf3 {[%clk 0:02:56]}  O-O {[%clk 0:02:52]} 9. Be2 {[%clk 0:02:56]}  Bf5 {[%clk 0:02:52]} 10. O-O {[%clk 0:02:56]}  Ne4 {[%clk 0:02:47]} 11. Re1 {[%clk 0:02:52]}  Nxd2 {[%clk 0:02:46]} 12. Qxd2 {[%clk 0:02:47]}  Rc8 {[%clk 0:02:43]} 13. g4 {[%clk 0:02:30]}  Bd7 {[%clk 0:02:36]} 14. Bd3 {[%clk 0:02:29]}  Re8 {[%clk 0:02:33]} 15. Kh2 {[%clk 0:02:25]}  f6 {[%clk 0:02:31]} 16. c4 {[%clk 0:02:14]}  e6 {[%clk 0:02:17]} 17. Bg3 {[%clk 0:02:06]}  Qa5 {[%clk 0:02:14]} 18. Qxa5 {[%clk 0:02:02]}  Nxa5 {[%clk 0:02:15]} 19. c5 {[%clk 0:02:02]}  a6 {[%clk 0:02:01]} 20. Re2 {[%clk 0:01:56]}  Bb5 {[%clk 0:01:57]} 21. Bxb5 {[%clk 0:01:55]}  axb5 {[%clk 0:01:58]} 22. b3 {[%clk 0:01:50]}  Nc6 {[%clk 0:01:56]} 23. Rd1 {[%clk 0:01:49]}  Rcd8 {[%clk 0:01:54]} 24. Bd6 {[%clk 0:01:46]}  Bf8 {[%clk 0:01:49]} 25. Bxf8 {[%clk 0:01:45]}  Kxf8 {[%clk 0:01:49]} 26. g5 {[%clk 0:01:41]}  Kf7 {[%clk 0:01:49]} 27. h4 {[%clk 0:01:40]}  e5 {[%clk 0:01:28]} 28. gxf6 {[%clk 0:01:38]}  e4 {[%clk 0:01:28]} 29. Ng5+ {[%clk 0:01:37]}  Kxf6 {[%clk 0:01:29]} 30. Nxh7+ {[%clk 0:01:37]}  Kf5 {[%clk 0:01:29]} 31. Kg3 {[%clk 0:01:36]}  Rh8 {[%clk 0:01:22]} 32. Ng5 {[%clk 0:01:35]}  Rh5 {[%clk 0:01:22]} 33. f3 {[%clk 0:01:25]}  exf3 {[%clk 0:01:20]} 34. Re3 {[%clk 0:01:09]}  Rxh4 {[%clk 0:00:36]} 35. Kxh4 {[%clk 0:01:03]}  Rh8+ {[%clk 0:00:36]} 36. Kg3 {[%clk 0:01:03]}  Kxg5 {[%clk 0:00:37]} 37. Rxf3 {[%clk 0:01:02]}  Re8 {[%clk 0:00:34]} 38. Kf2 {[%clk 0:01:01]}  Re4 {[%clk 0:00:34]} 39. Rg1+ {[%clk 0:01:01]}  Kh6 {[%clk 0:00:34]} 40. Rf6 {[%clk 0:00:51]}  Nxd4 {[%clk 0:00:33]} 41. Rfxg6+ {[%clk 0:00:49]}  Kh5 {[%clk 0:00:32]} 42. Rg8 {[%clk 0:00:47]}  Re2+ {[%clk 0:00:18]} 43. Kf1 {[%clk 0:00:47]} 1-0


[Site "https://www.chess.com"]

[Event "Titled Tuesday Blitz June 15 2021"]
[White "Gracia Alvarez, Gerardo Antonio"]
[Black "Jia, Haoxiang"]
[WhiteFideId "5109124"]
[BlackFideId "8602999"]
[WhiteElo "2148"]
[BlackElo "2630"]
[Result "0-1"]
[Round "04"]
[TimeControl "180+1"]
[Date "2021.06.15"]
[WhiteClock "0:00:04"]
[BlackClock "0:00:15"]

1. e4 {[%clk 0:03:00]}  e5 {[%clk 0:02:58]} 2. Nf3 {[%clk 0:03:00]}  Nc6 {[%clk 0:02:58]} 3. Bc4 {[%clk 0:03:00]}  Nf6 {[%clk 0:02:58]} 4. d3 {[%clk 0:02:59]}  Bc5 {[%clk 0:02:57]} 5. O-O {[%clk 0:02:58]}  O-O {[%clk 0:02:56]} 6. h3 {[%clk 0:02:51]}  h6 {[%clk 0:02:53]} 7. Re1 {[%clk 0:02:47]}  d6 {[%clk 0:02:53]} 8. c3 {[%clk 0:02:43]}  a6 {[%clk 0:02:53]} 9. Bb3 {[%clk 0:02:39]}  Ba7 {[%clk 0:02:52]} 10. Nbd2 {[%clk 0:02:37]}  Ne7 {[%clk 0:02:52]} 11. Nf1 {[%clk 0:02:31]}  Ng6 {[%clk 0:02:52]} 12. Ng3 {[%clk 0:02:30]}  Be6 {[%clk 0:02:42]} 13. Bc2 {[%clk 0:02:26]}  Qc8 {[%clk 0:02:27]} 14. d4 {[%clk 0:02:21]}  b5 {[%clk 0:02:24]} 15. Be3 {[%clk 0:02:14]}  Re8 {[%clk 0:02:11]} 16. Qd2 {[%clk 0:01:59]}  Kh7 {[%clk 0:01:51]} 17. a4 {[%clk 0:01:54]}  c6 {[%clk 0:01:37]} 18. Rad1 {[%clk 0:01:44]}  Qb7 {[%clk 0:01:24]} 19. Nf5 {[%clk 0:01:42]}  Bxf5 {[%clk 0:01:04]} 20. exf5 {[%clk 0:01:41]}  Nf8 {[%clk 0:01:04]} 21. dxe5 {[%clk 0:01:37]}  dxe5 {[%clk 0:01:04]} 22. Bxa7 {[%clk 0:01:34]}  Qxa7 {[%clk 0:00:57]} 23. Nxe5 {[%clk 0:01:31]}  Qc7 {[%clk 0:00:58]} 24. Ng4 {[%clk 0:01:17]}  N8d7 {[%clk 0:00:49]} 25. Re3 {[%clk 0:00:53]}  Nxg4 {[%clk 0:00:42]} 26. hxg4 {[%clk 0:00:54]}  Nf6 {[%clk 0:00:42]} 27. g5 {[%clk 0:00:48]}  Rad8 {[%clk 0:00:37]} 28. g6+ {[%clk 0:00:38]}  fxg6 {[%clk 0:00:32]} 29. fxg6+ {[%clk 0:00:39]}  Kh8 {[%clk 0:00:31]} 30. Rxe8+ {[%clk 0:00:31]}  Rxe8 {[%clk 0:00:30]} 31. Re1 {[%clk 0:00:26]}  Rxe1+ {[%clk 0:00:29]} 32. Qxe1 {[%clk 0:00:26]}  Qf4 {[%clk 0:00:27]} 33. axb5 {[%clk 0:00:16]}  cxb5 {[%clk 0:00:25]} 34. Bb3 {[%clk 0:00:16]}  Qd6 {[%clk 0:00:17]} 35. Qe2 {[%clk 0:00:12]}  Qc6 {[%clk 0:00:15]} 36. Qe5 {[%clk 0:00:11]}  Qe8 {[%clk 0:00:14]} 37. Qxe8+ {[%clk 0:00:07]}  Nxe8 {[%clk 0:00:15]} 38. f3 {[%clk 0:00:04]}  Nd6 {[%clk 0:00:14]} 39. Kf2 {[%clk 0:00:04]}  a5 {[%clk 0:00:14]} 40. Ke3 {[%clk 0:00:04]}  a4 {[%clk 0:00:15]} 41. Bd5 {[%clk 0:00:04]}  Nf5+ {[%clk 0:00:15]} 42. Kf4 {[%clk 0:00:04]}  Nh4 {[%clk 0:00:15]} 43. Be4 {[%clk 0:00:03]}  Nxg2+ {[%clk 0:00:15]} 44. Ke5 {[%clk 0:00:03]}  Ne3 {[%clk 0:00:15]} 45. Kd4 {[%clk 0:00:03]}  Nd1 {[%clk 0:00:15]} 46. Kc5 {[%clk 0:00:02]}  Nxb2 {[%clk 0:00:15]} 47. Kxb5 {[%clk 0:00:02]}  a3 {[%clk 0:00:16]} 48. Bd5 {[%clk 0:00:01]}  Nd1 {[%clk 0:00:15]} 49. Kb4 {[%clk 0:00:02]}  Ne3 {[%clk 0:00:14]} 50. Bf7 {[%clk 0:00:01]}  h5 {[%clk 0:00:14]} 51. Kxa3 {[%clk 0:00:01]}  h4 {[%clk 0:00:14]} 52. Be6 {[%clk 0:00:01]}  Ng2 {[%clk 0:00:13]} 53. c4 {[%clk 0:00:01]}  Nf4 {[%clk 0:00:13]} 54. Bg4 {[%clk 0:00:01]}  Nxg6 {[%clk 0:00:13]} 55. c5 {[%clk 0:00:01]}  Ne5 {[%clk 0:00:13]} 56. Bh3 {[%clk 0:00:01]}  Kg8 {[%clk 0:00:12]} 57. Kb3 {[%clk 0:00:02]}  Kf7 {[%clk 0:00:13]} 58. Kc3 {[%clk 0:00:02]}  Kf6 {[%clk 0:00:13]} 59. Kd4 {[%clk 0:00:03]}  Nxf3+ {[%clk 0:00:13]} 60. Kd5 {[%clk 0:00:03]}  Ne5 {[%clk 0:00:13]} 61. c6 {[%clk 0:00:04]}  Nxc6 {[%clk 0:00:12]} 62. Kxc6 {[%clk 0:00:05]}  Ke5 {[%clk 0:00:12]} 63. Kc5 {[%clk 0:00:04]}  g5 {[%clk 0:00:12]} 64. Kc4 {[%clk 0:00:04]}  Ke4 {[%clk 0:00:13]} 65. Bg2+ {[%clk 0:00:03]}  Ke3 {[%clk 0:00:13]} 66. Kd5 {[%clk 0:00:03]}  g4 {[%clk 0:00:13]} 67. Ke5 {[%clk 0:00:04]}  h3 {[%clk 0:00:14]} 68. Bh1 {[%clk 0:00:04]}  g3 {[%clk 0:00:14]} 69. Kf5 {[%clk 0:00:04]}  g2 {[%clk 0:00:14]} 70. Bxg2 {[%clk 0:00:04]}  hxg2 {[%clk 0:00:15]} 0-1


[Site "https://www.chess.com"]

[Event "Titled Tuesday Blitz June 15 2021"]
[White "Jacobson, Brandon"]
[Black "Durarbayli, Vasif"]
[WhiteFideId "30901561"]
[BlackFideId "13402935"]
[WhiteElo "2362"]
[BlackElo "2500"]
[Result "1-0"]
[Round "04"]
[TimeControl "180+1"]
[Date "2021.06.15"]
[WhiteClock "0:00:06"]
[BlackClock "0:00:22"]

1. d4 {[%clk 0:03:00]}  Nf6 {[%clk 0:02:59]} 2. c4 {[%clk 0:03:01]}  e6 {[%clk 0:03:00]} 3. Nf3 {[%clk 0:03:00]}  c5 {[%clk 0:03:00]} 4. d5 {[%clk 0:02:59]}  exd5 {[%clk 0:03:01]} 5. cxd5 {[%clk 0:03:00]}  d6 {[%clk 0:03:02]} 6. Nc3 {[%clk 0:03:00]}  a6 {[%clk 0:03:01]} 7. a4 {[%clk 0:03:00]}  g6 {[%clk 0:03:01]} 8. h3 {[%clk 0:03:01]}  Bg7 {[%clk 0:03:01]} 9. e4 {[%clk 0:03:02]}  O-O {[%clk 0:03:01]} 10. Bd3 {[%clk 0:03:02]}  Nbd7 {[%clk 0:02:57]} 11. O-O {[%clk 0:03:03]}  Ne8 {[%clk 0:02:57]} 12. Bg5 {[%clk 0:03:00]}  Qb6 {[%clk 0:02:54]} 13. Qd2 {[%clk 0:02:45]}  Bf6 {[%clk 0:02:46]} 14. Bxf6 {[%clk 0:02:37]}  Nexf6 {[%clk 0:02:47]} 15. a5 {[%clk 0:02:37]}  Qc7 {[%clk 0:02:44]} 16. Qf4 {[%clk 0:02:23]}  Re8 {[%clk 0:02:38]} 17. Nd2 {[%clk 0:02:10]}  Kg7 {[%clk 0:02:30]} 18. Rfc1 {[%clk 0:01:47]}  Ne5 {[%clk 0:02:27]} 19. Bf1 {[%clk 0:01:47]}  b5 {[%clk 0:02:24]} 20. b4 {[%clk 0:01:38]}  c4 {[%clk 0:02:19]} 21. Qe3 {[%clk 0:01:36]}  Qa7 {[%clk 0:02:14]} 22. Qxa7 {[%clk 0:01:32]}  Rxa7 {[%clk 0:02:15]} 23. f4 {[%clk 0:01:31]}  Ned7 {[%clk 0:02:08]} 24. g3 {[%clk 0:01:31]}  Nb8 {[%clk 0:02:02]} 25. Re1 {[%clk 0:01:30]}  Rae7 {[%clk 0:02:03]} 26. Bg2 {[%clk 0:01:28]}  Bb7 {[%clk 0:01:57]} 27. Kf2 {[%clk 0:01:28]}  h5 {[%clk 0:01:38]} 28. Bf3 {[%clk 0:01:18]}  Bc8 {[%clk 0:01:34]} 29. Bg2 {[%clk 0:01:11]}  Bb7 {[%clk 0:01:31]} 30. Re2 {[%clk 0:01:06]}  Nbd7 {[%clk 0:01:30]} 31. Rae1 {[%clk 0:01:06]}  Nh7 {[%clk 0:01:20]} 32. e5 {[%clk 0:00:34]}  dxe5 {[%clk 0:01:19]} 33. d6 {[%clk 0:00:32]}  Bxg2 {[%clk 0:01:20]} 34. Kxg2 {[%clk 0:00:16]}  Re6 {[%clk 0:01:10]} 35. fxe5 {[%clk 0:00:17]}  Nxe5 {[%clk 0:00:49]} 36. Rxe5 {[%clk 0:00:15]}  Rxe5 {[%clk 0:00:33]} 37. Rxe5 {[%clk 0:00:16]}  Rxe5 {[%clk 0:00:33]} 38. d7 {[%clk 0:00:16]}  Re3 {[%clk 0:00:34]} 39. d8=Q {[%clk 0:00:14]}  Rd3 {[%clk 0:00:33]} 40. Qb6 {[%clk 0:00:09]}  Rxd2+ {[%clk 0:00:34]} 41. Kf1 {[%clk 0:00:10]}  Ng5 {[%clk 0:00:32]} 42. Qe3 {[%clk 0:00:09]}  Rd3 {[%clk 0:00:25]} 43. Qxg5 {[%clk 0:00:10]}  f6 {[%clk 0:00:25]} 44. Qc1 {[%clk 0:00:09]}  Rxg3 {[%clk 0:00:25]} 45. Qe1 {[%clk 0:00:06]}  Rxh3 {[%clk 0:00:23]} 46. Qe7+ {[%clk 0:00:06]}  Kh6 {[%clk 0:00:22]} 47. Qxf6 {[%clk 0:00:07]}  h4 {[%clk 0:00:22]} 48. Ne4 {[%clk 0:00:06]} 1-0


[Site "https://www.chess.com"]

[Event "Titled Tuesday Blitz June 15 2021"]
[White "Jarmula, Lukasz"]
[Black "Starozhilov, Leonid"]
[WhiteFideId "1160664"]
[BlackFideId "14106752"]
[WhiteElo "2244"]
[BlackElo "2414"]
[Result "1-0"]
[Round "04"]
[TimeControl "180+1"]
[Date "2021.06.15"]
[WhiteClock "0:00:11"]
[BlackClock "0:00:01"]

1. e4 {[%clk 0:03:00]}  g6 {[%clk 0:02:58]} 2. d4 {[%clk 0:03:00]}  Bg7 {[%clk 0:02:59]} 3. Be3 {[%clk 0:02:59]}  d6 {[%clk 0:02:58]} 4. Nc3 {[%clk 0:02:57]}  a6 {[%clk 0:02:58]} 5. a4 {[%clk 0:02:54]}  Nc6 {[%clk 0:02:58]} 6. d5 {[%clk 0:02:46]}  Ne5 {[%clk 0:02:56]} 7. Be2 {[%clk 0:02:46]}  Nf6 {[%clk 0:02:55]} 8. h3 {[%clk 0:02:44]}  c6 {[%clk 0:02:55]} 9. f4 {[%clk 0:02:43]}  Ned7 {[%clk 0:02:55]} 10. dxc6 {[%clk 0:02:43]}  bxc6 {[%clk 0:02:55]} 11. Nf3 {[%clk 0:02:43]}  Rb8 {[%clk 0:02:56]} 12. Rb1 {[%clk 0:02:42]}  Qa5 {[%clk 0:02:56]} 13. O-O {[%clk 0:02:41]}  O-O {[%clk 0:02:52]} 14. Kh2 {[%clk 0:02:36]}  Nc5 {[%clk 0:02:43]} 15. e5 {[%clk 0:02:31]}  Nfe4 {[%clk 0:02:34]} 16. Nxe4 {[%clk 0:02:23]}  Nxe4 {[%clk 0:02:33]} 17. Qd3 {[%clk 0:02:00]}  d5 {[%clk 0:02:19]} 18. Nd4 {[%clk 0:01:52]}  Qc7 {[%clk 0:02:01]} 19. b4 {[%clk 0:01:50]}  f6 {[%clk 0:01:56]} 20. exf6 {[%clk 0:01:47]}  Bxf6 {[%clk 0:01:53]} 21. Nf3 {[%clk 0:01:40]}  Bf5 {[%clk 0:01:50]} 22. g4 {[%clk 0:01:37]}  Bc8 {[%clk 0:01:36]} 23. Kg2 {[%clk 0:01:31]}  Nc3 {[%clk 0:01:09]} 24. Rb3 {[%clk 0:01:26]}  Nxe2 {[%clk 0:01:03]} 25. Qxe2 {[%clk 0:01:26]}  a5 {[%clk 0:00:55]} 26. bxa5 {[%clk 0:01:19]}  Rxb3 {[%clk 0:00:55]} 27. cxb3 {[%clk 0:01:18]}  c5 {[%clk 0:00:43]} 28. Bd2 {[%clk 0:01:12]}  d4 {[%clk 0:00:42]} 29. Qc4+ {[%clk 0:01:08]}  Kh8 {[%clk 0:00:42]} 30. b4 {[%clk 0:01:08]}  Bb7 {[%clk 0:00:37]} 31. a6 {[%clk 0:01:06]}  Ba8 {[%clk 0:00:34]} 32. b5 {[%clk 0:01:06]}  Rd8 {[%clk 0:00:29]} 33. a5 {[%clk 0:01:00]}  Bd5 {[%clk 0:00:30]} 34. Qe2 {[%clk 0:00:58]}  c4 {[%clk 0:00:29]} 35. b6 {[%clk 0:00:59]}  Qc6 {[%clk 0:00:29]} 36. Kg3 {[%clk 0:00:56]}  c3 {[%clk 0:00:29]} 37. Bc1 {[%clk 0:00:56]}  Bc4 {[%clk 0:00:29]} 38. Ne5 {[%clk 0:00:43]}  Bxe5 {[%clk 0:00:14]} 39. Qxe5+ {[%clk 0:00:42]}  Kg8 {[%clk 0:00:14]} 40. Re1 {[%clk 0:00:26]}  Bxa6 {[%clk 0:00:11]} 41. Qxe7 {[%clk 0:00:22]}  Qd7 {[%clk 0:00:11]} 42. Qf6 {[%clk 0:00:17]}  Rf8 {[%clk 0:00:08]} 43. Qe5 {[%clk 0:00:14]}  Bb7 {[%clk 0:00:05]} 44. Rd1 {[%clk 0:00:13]}  Rd8 {[%clk 0:00:05]} 45. Be3 {[%clk 0:00:12]}  c2 {[%clk 0:00:03]} 46. Rxd4 {[%clk 0:00:11]}  Qxd4 {[%clk 0:00:03]} 47. Bxd4 {[%clk 0:00:11]}  Rxd4 {[%clk 0:00:02]} 48. Qxd4 {[%clk 0:00:10]}  c1=Q {[%clk 0:00:02]} 49. Qd8+ {[%clk 0:00:11]}  Kg7 {[%clk 0:00:02]} 50. Qd7+ {[%clk 0:00:11]}  Kg8 {[%clk 0:00:02]} 51. Qxb7 {[%clk 0:00:11]}  Qe3+ {[%clk 0:00:01]} 52. Kh4 {[%clk 0:00:11]} 1-0


[Site "https://www.chess.com"]